Workbook

Sheet Лист1
A1: Школа | F1: Утвердил: | G1: должность
A2: Типовое примерное меню приготавливаемых блюд | G2: фамилия
A3: Возрастная категория | E3: 7-11 лет | G3: дата | I3: Декабрь | J3: 2024
H4: день | I4: месяц | J4: год
A5: Неделя | B5: День недели | C5: Прием пищи | D5: Раздел меню | E5: Блюда | F5: Вес блюда, г | G5: Белки | H5: Жиры | I5: Углеводы | J5: Калорийность | K5: № рецептуры | L5: Цена
A6: 1 | B6: 1 | C6: Завтрак | D6: гор.блюдо | E6: Ёжики мясные с рисом в соусе для запекания | F6: 90 | G6: 12.683 | H6: 13.909 | I6: 10.985 | J6: 220 | K6: ТТК от 09.07.2023
D7: гор.блюдо | E7: Каша гречневая вязкая | F7: 150 | G7: 3.462 | H7: 4.634 | I7: 21.786 | J7: 143 | K7: № 304/2015г Дели
D8: гор.напиток | E8: Чай с сахаром | F8: 208 | G8: 0.021 | H8: 0.005 | I8: 7.989 | J8: 32 | K8: ТТК от 2021г
D9: хлеб | E9: Хлеб ржано-пшеничный/ Хлеб пшеничный | F9: 40 | G9: 2.520 | H9: 0.360 | I9: 18.840 | J9: 91
D10: фрукты | E10: Плоды и ягоды свежие (яблоки) | F10: 90 | G10: 0.360 | H10: 0.360 | I10: 8.820 | J10: 42 | K10: № 338
D13: итого | F13: =SUM(F6:F12) -> 578 | G13: =SUM(G6:G12) -> 19.046 | H13: 19.268 | I13: 68.42 | J13: 528
A14: =A6 -> 1 | B14: =B6 -> 1 | C14: Обед | D14: закуска
D15: 1 блюдо
D16: 2 блюдо
D17: гарнир
D18: напиток
D19: хлеб бел.
D20: хлеб черн.
D23: итого | F23: =SUM(F14:F22) -> 0 | G23: =SUM(G14:G22) -> 0 | H23: 0 | I23: 0 | J23: 0 | L23: =SUM(L14:L22) -> 0
A24: =A6 -> 1 | B24: =B6 -> 1 | C24: Итого за день: | F24: =F13+F23 -> 578 | G24: =G13+G23 -> 19.046 | H24: 19.268 | I24: 68.42 | J24: 528 | L24: =L13+L23 -> 0
A25: 1 | B25: 2 | C25: Завтрак | D25: гор.блюдо | E25: Жаркое из филе куриных грудок | F25: 200 | G25: 12.890 | H25: 15.910 | I25: 35.790 | J25: 341 | K25: ТТК №2738 от 7.12.2023
D26: гор.блюдо
D27: гор.напиток | E27: Чай с сахаром | F27: 208 | G27: 0.021 | H27: 0.005 | I27: 7.989 | J27: 32 | K27: ТТК от 2021г
D28: хлеб | E28: Хлеб ржано-пшеничный/ Хлеб пшеничный | F28: 40 | G28: 2.52 | H28: 0.36 | I28: 18.84 | J28: 91
D30: фрукты
E31: Салат из белокачанной капусты | F31: 60 | G31: 0.931 | H31: 3.051 | I31: 5.645 | J31: 54 | K31: № 45/2015г Дели
D33: итого | F33: =SUM(F25:F32) -> 508 | G33: 16.362 | H33: 19.326 | I33: =SUM(I25:I32) -> 68.264 | J33: 518
A34: =A25 -> 1 | B34: =B25 -> 2 | C34: Обед | D34: закуска
D35: 1 блюдо
D36: 2 блюдо
D37: гарнир
D38: напиток
D39: хлеб бел.
D40: хлеб черн.
D43: итого | F43: =SUM(F34:F42) -> 0 | G43: =SUM(G34:G42) -> 0 | H43: 0 | I43: 0 | J43: 0 | L43: =SUM(L34:L42) -> 0
A44: =A25 -> 1 | B44: =B25 -> 2 | C44: Итого за день: | F44: =F33+F43 -> 508 | G44: =G33+G43 -> 16.362 | H44: 19.326 | I44: 68.264 | J44: 518 | L44: =L33+L43 -> 0
A45: 1 | B45: 3 | C45: Завтрак | D45: гор.блюдо | E45: Чикен | F45: 90 | G45: 11.103 | H45: 12.108 | I45: 11.093 | J45: 176 | K45: ТТК № 2213 от 02.12.2022
D46: гор.блюдо | E46: Макаронные изделия отварные | F46: 150 | G46: 5.044 | H46: 3.068 | I46: 35.906 | J46: 191 | K46: №202/2015г Дели
D47: гор.напиток | E47: Напиток из урюка | F47: 200 | G47: 0.02 | I47: 7.99 | J47: 32 | K47: ТТК 2021г
D48: хлеб | E48: Хлеб ржано-пшеничный/ Хлеб пшеничный | F48: 40 | G48: 2.52 | H48: 0.36 | I48: 18.84 | J48: 91
D49: фрукты | E49: Плоды и ягоды свежие (яблоки) | F49: 90 | G49: 0.360 | H49: 0.360 | I49: 8.820 | J49: 42 | K49: № 338
D52: итого | F52: =SUM(F45:F51) -> 570 | G52: =SUM(G45:G51) -> 19.047 | H52: 15.896 | I52: 82.649 | J52: 532
A53: =A45 -> 1 | B53: =B45 -> 3 | C53: Обед | D53: закуска
D54: 1 блюдо
D55: 2 блюдо
D56: гарнир
D57: напиток
D58: хлеб бел.
D59: хлеб черн.
D62: итого | F62: =SUM(F53:F61) -> 0 | G62: =SUM(G53:G61) -> 0 | H62: 0 | I62: 0 | J62: 0 | L62: =SUM(L53:L61) -> 0
A63: =A45 -> 1 | B63: =B45 -> 3 | C63: Итого за день: | F63: =F52+F62 -> 570 | G63: =G52+G62 -> 19.047 | H63: 15.896 | I63: 82.649 | J63: 532 | L63: =L52+L62 -> 0
A64: 1 | B64: 4 | C64: Завтрак | D64: гор.блюдо | E64: Плов с говядиной | F64: 200 | G64: 15.44 | H64: 19.29 | I64: 51.2 | J64: 430 | K64: ТТК № 2737 от 07.12.2023
D65: гор.блюдо
D66: гор.напиток | E66: Чай с сахаром | F66: 208 | G66: 0.021 | H66: 0.005 | I66: 7.989 | J66: 32 | K66: ТТК от 2021г
D67: хлеб | E67: Хлеб ржано-пшеничный/ Хлеб пшеничный | F67: 40 | G67: 2.52 | H67: 0.36 | I67: 18.84 | J67: 91
D68: фрукты
E69: Салат из моркови | F69: 60 | G69: 2.06 | H69: 0.12 | I69: 2.28 | J69: 14 | K69: ТТК
D71: итого | F71: =SUM(F64:F70) -> 508 | G71: =SUM(G64:G70) -> 20.041 | H71: =SUM(H64:H70) -> 19.775 | I71: 80.309 | J71: =SUM(J64:J70) -> 567
A72: =A64 -> 1 | B72: =B64 -> 4 | C72: Обед | D72: закуска
D73: 1 блюдо
D74: 2 блюдо
D75: гарнир
D76: напиток
D77: хлеб бел.
D78: хлеб черн.
D81: итого | F81: =SUM(F72:F80) -> 0 | G81: =SUM(G72:G80) -> 0 | H81: 0 | I81: 0 | J81: 0 | L81: =SUM(L72:L80) -> 0
A82: =A64 -> 1 | B82: =B64 -> 4 | C82: Итого за день: | F82: =F71+F81 -> 508 | G82: =G71+G81 -> 20.041 | H82: 19.775 | I82: 80.309 | J82: 567 | L82: =L71+L81 -> 0
A83: 1 | B83: 5 | C83: Завтрак | D83: гор.блюдо | E83: Биточки рыбные из минтая | F83: 90 | G83: 12.06 | H83: 15.12 | I83: 16.92 | J83: 238 | K83: ТТК №1515 от 28.07.2021
D84: гор.блюдо | E84: Пюре картофельное | F84: 150 | G84: 3.437 | H84: 4.556 | I84: 21.451 | J84: 144 | K84: №312/2015 Дели
D85: гор.напиток | E85: Компот из свежих плодов (яблоки) | F85: 200 | G85: 0.08 | H85: 0.08 | I85: 11.94 | J85: 49 | K85: ТТК от 2021
D86: хлеб | E86: Хлеб ржано-пшеничный/ Хлеб пшеничный | F86: 40 | G86: 2.52 | H86: 0.36 | I86: 18.84 | J86: 91
D87: фрукты
E88: Салат из квашеной капусты | F88: 60 | G88: 0.42 | H88: 0.06 | I88: 1.14 | J88: 7 | K88: №47/2015 Дели
D90: итого | F90: =SUM(F83:F89) -> 540 | G90: =SUM(G83:G89) -> 18.517 | H90: 20.176 | I90: 70.291 | J90: 529
A91: =A83 -> 1 | B91: =B83 -> 5 | C91: Обед | D91: закуска
D92: 1 блюдо
D93: 2 блюдо
D94: гарнир
D95: напиток
D96: хлеб бел.
D97: хлеб черн.
D100: итого | F100: =SUM(F91:F99) -> 0 | G100: =SUM(G91:G99) -> 0 | H100: 0 | I100: 0 | J100: 0 | L100: =SUM(L91:L99) -> 0
A101: =A83 -> 1 | B101: =B83 -> 5 | C101: Итого за день: | F101: =F90+F100 -> 540 | G101: =G90+G100 -> 18.517 | H101: 20.176 | I101: 70.291 | J101: 529 | L101: =L90+L100 -> 0
A102: 1 | B102: 6 | C102: Завтрак | D102: гор.блюдо | E102: Пельмени "Для умников и умниц" отварные с маслом | F102: 155 | G102: 17.047 | H102: 15.236 | I102: 36.838 | J102: 344 | K102: ТТК 2015г
D104: гор.напиток | E104: Чай с сахаром, лимоном | F104: 213 | G104: 0.066 | H104: 0.01 | I104: 8.139 | J104: 34 | K104: ТТК от 2021г
D105: хлеб | E105: Хлеб ржано-пшеничный/ Хлеб пшеничный | F105: 42 | G105: 2.672 | H105: 0.376 | I105: 19.824 | J105: 96
D106: фрукты | E106: Плоды и ягоды свежие (яблоки) | F106: 90 | G106: 0.360 | H106: 0.360 | I106: 8.820 | J106: 42 | K106: №338
D109: итого | F109: =SUM(F102:F108) -> 500 | G109: 20.145 | H109: 15.982 | I109: =SUM(I102:I108) -> 73.621 | J109: =SUM(J102:J108) -> 516
A110: =A102 -> 1 | B110: 6 | C110: Обед | D110: закуска
D111: 1 блюдо
D112: 2 блюдо
D113: гарнир
D114: напиток
D115: хлеб бел.
D116: хлеб черн.
D119: итого | F119: =SUM(F110:F118) -> 0 | G119: =SUM(G110:G118) -> 0 | H119: 0 | I119: 0 | J119: 0 | L119: =SUM(L110:L118) -> 0
A120: =A102 -> 1 | B120: =B102 -> 6 | C120: Итого за день: | F120: =F109+F119 -> 500 | G120: =G109+G119 -> 20.145 | H120: 15.982 | I120: 73.621 | J120: 516 | L120: =L109+L119 -> 0
A121: 2 | B121: 1 | C121: Завтрак | D121: гор.блюдо | E121: Котлеты "Аппетитные" мясо-куриные | F121: 90 | G121: 13.795 | H121: 14.749 | I121: 7.996 | J121: 216 | K121: ТТК от 01.11.2022
D122: гор.блюдо | E122: Каша рисовая вязкая | F122: 150 | G122: 2.303 | H122: 4.129 | I122: 23.944 | J122: 142 | K122: ТТК 2014г
D123: гор.напиток | E123: Чай с сахаром | F123: 208 | G123: 0.021 | H123: 0.005 | I123: 7.989 | J123: 32 | K123: ТТК от 2021г
D124: хлеб | E124: Хлеб ржано-пшеничный/ Хлеб пшеничный | F124: 40 | G124: 2.520 | H124: 0.360 | I124: 18.840 | J124: 91
D125: фрукты | E125: Плоды и ягоды свежие (яблоки) | F125: 90 | G125: 0.360 | H125: 0.360 | I125: 8.820 | J125: 42 | K125: № 338
D128: итого | F128: =SUM(F121:F127) -> 578 | G128: =SUM(G121:G127) -> 18.999 | H128: 19.603 | I128: =SUM(I121:I125) -> 67.589 | J128: =SUM(J121:J125) -> 523
A129: =A121 -> 2 | B129: =B121 -> 1 | C129: Обед | D129: закуска
D130: 1 блюдо
D131: 2 блюдо
D132: гарнир
D133: напиток
D134: хлеб бел.
D135: хлеб черн.
D138: итого | F138: =SUM(F129:F137) -> 0 | G138: =SUM(G129:G137) -> 0 | H138: 0 | I138: 0 | J138: 0 | L138: =SUM(L129:L137) -> 0
A139: =A121 -> 2 | B139: =B121 -> 1 | C139: Итого за день: | F139: =F128+F138 -> 578 | G139: =G128+G138 -> 18.999 | H139: 19.603 | I139: 67.589 | J139: 523 | L139: =L128+L138 -> 0
A140: 2 | B140: 2 | C140: Завтрак | D140: гор.блюдо | E140: Жаркое по - домашнему | F140: 200 | G140: 13.05 | H140: 17.93 | I140: 39.88 | J140: 373 | K140: ТТК №2738 от 07.12.2023г2023г
D142: гор.напиток | E142: Чай с сахаром | F142: 208 | G142: 0.021 | H142: 0.005 | I142: 7.989 | J142: 32 | K142: ТТК от 2021г Дели
D143: хлеб | E143: Хлеб ржано-пшеничный/ Хлеб пшеничный | F143: 40 | G143: 2.52 | H143: 0.36 | I143: 18.84 | J143: 91
D144: фрукты
E145: Салат из моркови | F145: 60 | G145: 2.06 | H145: 0.12 | I145: 2.28 | J145: 14 | K145: ТТК
D147: итого | F147: =SUM(F140:F146) -> 508 | G147: =SUM(G140:G146) -> 17.651 | H147: 18.415 | I147: 68.989 | J147: 510
A148: =A140 -> 2 | B148: =B140 -> 2 | C148: Обед | D148: закуска
D149: 1 блюдо
D150: 2 блюдо
D151: гарнир
D152: напиток
D153: хлеб бел.
D154: хлеб черн.
D157: итого | F157: =SUM(F148:F156) -> 0 | G157: =SUM(G148:G156) -> 0 | H157: 0 | I157: 0 | J157: 0 | L157: =SUM(L148:L156) -> 0
A158: =A140 -> 2 | B158: =B140 -> 2 | C158: Итого за день: | F158: =F147+F157 -> 508 | G158: =G147+G157 -> 17.651 | H158: 18.415 | I158: 68.989 | J158: 510 | L158: =L147+L157 -> 0
A159: 2 | B159: 3 | C159: Завтрак | D159: гор.блюдо | E159: Бифштекс рубленый по-домашнему | F159: 90 | G159: 10.69 | H159: 12.037 | I159: 8.367 | J159: 185 | K159: ТТК от 01.11.2022
D160: гор.блюдо | E160: Макаронные изделия отварные | F160: 150 | G160: 5.044 | H160: 3.068 | I160: 35.906 | J160: 191 | K160: № 202/2015 Дели
D161: гор.напиток | E161: Чай с сахаром | F161: 208 | G161: 0.021 | H161: 0.005 | I161: 7.989 | J161: 32 | K161: ТТК от 2021г
D162: хлеб | E162: Хлеб ржано-пшеничный/ Хлеб пшеничный | F162: 40 | G162: 2.52 | H162: 0.36 | I162: 18.84 | J162: 91
D163: фрукты | E163: Плоды и ягоды свежие (яблоки) | F163: 90 | G163: 0.360 | H163: 0.360 | I163: 8.820 | J163: 42 | K163: № 338
D166: итого | F166: =SUM(F159:F165) -> 578 | G166: =SUM(G159:G165) -> 18.635 | H166: =SUM(H159:H165) -> 15.83 | I166: 79.922 | J166: 541
A167: =A159 -> 2 | B167: =B159 -> 3 | C167: Обед | D167: закуска
D168: 1 блюдо
D169: 2 блюдо
D170: гарнир
D171: напиток
D172: хлеб бел.
D173: хлеб черн.
D176: итого | F176: =SUM(F167:F175) -> 0 | G176: =SUM(G167:G175) -> 0 | H176: 0 | I176: 0 | J176: 0 | L176: =SUM(L167:L175) -> 0
A177: =A159 -> 2 | B177: =B159 -> 3 | C177: Итого за день: | F177: =F166+F176 -> 578 | G177: =G166+G176 -> 18.635 | H177: 15.83 | I177: 79.922 | J177: 541 | L177: =L166+L176 -> 0
A178: 2 | B178: 4 | C178: Завтрак | D178: гор.блюдо | E178: Плов с куриными грудками | F178: 200 | G178: 15.448 | H178: 19.298 | I178: 45.883 | J178: 419 | K178: ТТК 2021г Июль
D180: гор.напиток | E180: Напиток из урюка | F180: 200 | G180: 0.02 | I180: 7.99 | J180: 32 | K180: ТТК №2693 от 14.09.2023
D181: хлеб | E181: Хлеб ржано-пшеничный/ Хлеб пшеничный | F181: 40 | G181: 2.52 | H181: 0.36 | I181: 18.84 | J181: 91
D182: фрукты
E183: Салат из квашеной капусты | F183: 60 | G183: 0.42 | H183: 0.06 | I183: 1.14 | J183: 7 | K183: №47/2015 Дели
D185: итого | F185: =F178+F179+F180+F181+F182+F183 -> 500 | G185: 18.408 | H185: 19.718 | I185: 73.853 | J185: =J178+J179+J180+J181+J182+J183 -> 549
A186: =A178 -> 2 | B186: =B178 -> 4 | C186: Обед | D186: закуска
D187: 1 блюдо
D188: 2 блюдо
D189: гарнир
D190: напиток
D191: хлеб бел.
D192: хлеб черн.
D195: итого | F195: =SUM(F186:F194) -> 0 | G195: =SUM(G186:G194) -> 0 | H195: 0 | I195: 0 | J195: 0 | L195: =SUM(L186:L194) -> 0
A196: =A178 -> 2 | B196: =B178 -> 4 | C196: Итого за день: | L196: =L185+L195 -> 0
A197: 2 | B197: 5 | C197: Завтрак | D197: гор.блюдо | E197: Ежики рыбные с рисом в томатном соусе | F197: 90 | G197: 11.25 | H197: 10.16 | I197: 21.21 | J197: 221 | K197: ТТК от 2024
D198: гор.блюдо | E198: Пюре картофельное | F198: 150 | G198: 3.437 | H198: 4.556 | I198: 21.451 | J198: 144 | K198: №312/2015 Дели
D199: гор.напиток | E199: Компот из свежих плодов (яблоки) | F199: 200 | G199: 0.08 | H199: 0.08 | I199: 11.94 | J199: 49 | K199: ТТК 2021
D200: хлеб | E200: Хлеб ржано-пшеничный/ Хлеб пшеничный | F200: 40 | G200: 2.52 | H200: 0.36 | I200: 18.84 | J200: 91
D201: фрукты
E202: Салат из белокачанной капусты | F202: 60 | G202: 0.931 | H202: 3.051 | I202: 5.645 | J202: 54 | K202: №45/2015 Дели
D204: итого | F204: =SUM(F197:F203) -> 540 | G204: =SUM(G197:G203) -> 18.218 | H204: 18.207 | I204: 79.086 | J204: 559
A205: =A197 -> 2 | B205: =B197 -> 5 | C205: Обед | D205: закуска
D206: 1 блюдо
D207: 2 блюдо
D208: гарнир
D209: напиток
D210: хлеб бел.
D211: хлеб черн.
D214: итого | F214: =SUM(F205:F213) -> 0 | G214: =SUM(G205:G213) -> 0 | H214: 0 | I214: 0 | J214: 0 | L214: =SUM(L205:L213) -> 0
A215: =A197 -> 2 | B215: =B197 -> 5 | C215: Итого за день: | F215: =F204+F214 -> 540 | G215: =G204+G214 -> 18.218 | H215: 18.207 | I215: 79.086 | J215: 559 | L215: =L204+L214 -> 0
A216: 2 | B216: 6 | C216: Завтрак | D216: гор.блюдо | E216: Сосиски отварные | F216: 100 | G216: 11.4 | H216: 15.71 | I216: 8.8 | J216: 222 | K216: №243/2015 Дели
D217: гор.блюдо | E217: Макаронные изделия отварные | F217: 150 | G217: 5.044 | H217: 3.068 | I217: 35.906 | J217: 191 | K217: №202/2015 Дели
D218: гор.напиток | E218: Чай с сахаром | F218: 208 | G218: 0.021 | H218: 0.005 | I218: 7.989 | J218: 32 | K218: ТТК от 2021г
D219: хлеб | E219: Хлеб ржано-пшеничный/ Хлеб пшеничный | F219: 40 | G219: 2.52 | H219: 0.36 | I219: 18.84 | J219: 91
D220: фрукты
E221: Овощи натуральные соленые (огурцы) | F221: 10 | G221: 0.08 | H221: 0.01 | I221: 0.503 | J221: 2 | K221: №70/2015 Дели
D223: итого | F223: =SUM(F216:F222) -> 508 | G223: =SUM(G216:G222) -> 19.065 | H223: 19.153 | I223: =SUM(I216:I222) -> 72.038 | J223: 492
A224: =A216 -> 2 | B224: 6 | C224: Обед | D224: закуска
D225: 1 блюдо
D226: 2 блюдо
D227: гарнир
D228: напиток
D229: хлеб бел.
D230: хлеб черн.
D233: итого | F233: =SUM(F224:F232) -> 0 | G233: =SUM(G224:G232) -> 0 | H233: 0 | I233: 0 | J233: 0 | L233: =SUM(L224:L232) -> 0
A234: =A216 -> 2 | B234: =B216 -> 6 | C234: Итого за день: | F234: =F223+F233 -> 508 | G234: =G223+G233 -> 19.065 | H234: 19.153 | I234: 72.038 | J234: 492 | L234: =L223+L233 -> 0
